fUSD/lending_fUSD_20240614
["ID","MTS","AMOUNT","RATE_DAILY","PERIOD"]
[329453669,1718374294627,-514.48934916,0.00024383,3]
[329453670,1718374294640,-676.86,0.00024383,3]
[329453671,1718374294651,-11835.04,0.00024383,3]
[329453672,1718374294678,-500.0,0.00024383,3]
[329453673,1718374294708,-500.0,0.00024383,3]
[329453674,1718374294761,-500.0,0.00024383,3]
[329453675,1718374294805,-500.0,0.00024383,3]
[329453676,1718374294845,-500.0,0.00024383,3]
[329453677,1718374294856,-1499.12,0.00024383,3]
[329453678,1718374294909,-1109.67,0.00024383,3]
[329453679,1718374294962,-1234.09,0.00024383,3]
[329453680,1718374294981,-500.0,0.00024383,3]
[329453681,1718374295084,-2525.21,0.00024383,3]
[329453682,1718374295172,-500.0,0.00024383,3]
[329453683,1718374295237,-500.0,0.00024383,3]
[329453684,1718374295268,-500.0,0.00024383,3]
[329453685,1718374295301,-1018.6,0.00024383,3]
[329453686,1718374295314,-500.0,0.00024383,3]
[329453687,1718374295325,-2145.48,0.00024383,3]
[329453688,1718374295336,-500.0,0.00024383,3]
[329453689,1718374295358,-462.877375,0.00024383,7]
[329453690,1718374295433,-995.35,0.00024383,3]
[329453691,1718374295445,-462.877375,0.00024383,7]
[329453692,1718374295462,-500.0,0.00024383,3]
[329453693,1718374295623,-1097.58,0.00024383,3]
[329453694,1718374295669,-500.0,0.00024383,3]
[329453695,1718374295731,-1778.24,0.00024383,3]
[329453696,1718374295784,-500.0,0.00024383,3]
[329453697,1718374295808,-500.0,0.00024383,3]
[329453698,1718374295832,-1628.09,0.00024383,3]
[329453699,1718374295851,-500.0,0.00024383,3]
[329453700,1718374295865,-462.877375,0.00024383,7]
[329453701,1718374295908,-500.0,0.00024383,3]
[329453702,1718374295928,-1321.13,0.00024383,3]
[329453703,1718374295939,-500.0,0.00024383,3]
[329453704,1718374296015,-500.0,0.00024383,3]
[329453705,1718374296065,-500.0,0.00024383,3]
[329453706,1718374296188,-513.696815,0.00024383,3]
[329453707,1718374296216,-500.0,0.00024383,3]
[329453708,1718374296244,-633.29,0.00024383,3]
[329453709,1718374296273,-1162.14,0.00024383,3]
[329453710,1718374296306,-1121.54,0.00024383,3]
[329453711,1718374296360,-500.0,0.00024383,3]
[329453712,1718374296376,-500.0,0.00024383,3]
[329453713,1718374296401,-500.0,0.00024383,3]
[329453714,1718374296428,-151.0,0.00024383,7]
[329453715,1718374296465,-1054.93,0.00024383,3]
[329453716,1718374296494,-151.0,0.00024383,7]
[329453717,1718374296536,-500.0,0.00024383,3]
[329453718,1718374296552,-500.0,0.00024383,3]
[329453719,1718374296565,-462.877375,0.00024383,7]
[329453720,1718374296596,-468.52,0.00024383,3]
[329453721,1718374296618,-910.65,0.00024383,3]
[329453722,1718374296632,-500.0,0.00024383,3]
[329453723,1718374296654,-500.0,0.00024383,3]
[329453724,1718374296674,-500.0,0.00024383,3]
[329453725,1718374296694,-1312.32,0.00024383,3]
[329453726,1718374296716,-1251.31,0.00024383,3]
[329453727,1718374296749,-500.0,0.00024383,3]
[329453728,1718374296772,-500.0,0.00024383,3]
[329453729,1718374296801,-1644.57,0.00024383,3]
[329453730,1718374296817,-151.0,0.00024383,7]
[329453731,1718374296848,-151.0,0.00024383,7]
[329453732,1718374296861,-541.23,0.00024383,3]
[329453733,1718374296890,-506.96727944,0.00024383,3]
[329453734,1718374296903,-500.0,0.00024383,3]
[329453735,1718374296913,-500.0,0.00024383,3]
[329453736,1718374296930,-1918.56,0.00024383,3]
[329453737,1718374296942,-500.0,0.00024383,3]
[329453738,1718374296959,-1028.7,0.00024383,3]
[329453739,1718374296974,-3154.8,0.00024383,3]
[329453740,1718374296987,-500.0,0.00024383,3]
[329453741,1718374297024,-500.0,0.00024383,3]
[329453742,1718374297037,-500.0,0.00024383,3]
[329453743,1718374297048,-500.0,0.00024383,3]
[329453744,1718374297071,-1028.85,0.00024383,3]
[329453745,1718374297090,-1237.01,0.00024383,3]
[329453746,1718374297102,-180.022577,0.00024383,7]
[329453747,1718374297114,-973.18,0.00024383,3]
[329453748,1718374297125,-500.0,0.00024383,3]
[329453749,1718374297141,-973.91,0.00024383,3]
[329453750,1718374297155,-530.11,0.00024383,3]
[329453751,1718374297173,-564.63807286,0.00024383,3]
[329453752,1718374297185,-500.0,0.00024383,3]
[329453753,1718374297215,-778.7,0.00024383,3]
[329453754,1718374297235,-500.0,0.00024383,3]
[329453755,1718374297269,-500.0,0.00024383,3]
[329453756,1718374297296,-923.86,0.00024383,3]
[329453757,1718374297314,-6916.15,0.00024383,3]
[329453758,1718374297341,-151.0,0.00024383,7]
[329453759,1718374297369,-500.0,0.00024383,3]
[329453760,1718374297387,-500.0,0.00024383,3]
[329453761,1718374297405,-500.0,0.00024383,3]
[329453762,1718374297419,-151.0,0.00024383,7]
[329453763,1718374297457,-500.0,0.00024383,3]
[329453764,1718374297477,-500.0,0.00024383,3]
[329453765,1718374297508,-500.0,0.00024383,3]
[329453766,1718374297520,-500.0,0.00024383,3]
[329453767,1718374297534,-500.0,0.00024383,3]
[329453768,1718374297560,-839.63,0.00024383,3]
[329453769,1718374297573,-500.0,0.00024383,3]
[329453770,1718374297584,-549.17,0.00024383,3]
[329453771,1718374297597,-500.0,0.00024383,3]
[329453772,1718374297611,-500.0,0.00024383,3]
[329453773,1718374297623,-1549.83,0.00024383,3]
[329453774,1718374297635,-500.0,0.00024383,3]
[329453775,1718374297651,-2671.63,0.00024383,3]
[329453776,1718374297678,-500.0,0.00024383,3]
[329453777,1718374297703,-500.0,0.00024383,3]
[329453778,1718374297729,-822.38,0.00024383,3]
[329453779,1718374297740,-500.0,0.00024383,3]
[329453780,1718374297751,-856.42,0.00024383,3]
[329453781,1718374297762,-500.0,0.00024383,3]
[329453782,1718374297773,-714.96,0.00024383,3]
[329453783,1718374297802,-500.0,0.00024383,3]
[329453784,1718374297816,-977.11,0.00024383,3]
[329453785,1718374297841,-500.0,0.00024383,3]
[329453786,1718374297885,-730.87,0.00024383,3]
[329453787,1718374297906,-500.0,0.00024383,3]
[329453788,1718374297924,-500.0,0.00024383,3]
[329453789,1718374297942,-512.54417276,0.00024383,3]
[329453790,1718374297994,-500.0,0.00024383,3]
[329453791,1718374298033,-500.0,0.00024383,3]
[329453792,1718374298068,-500.0,0.00024383,3]
[329453793,1718374298119,-1011.97,0.00024383,3]
[329453794,1718374298145,-500.0,0.00024383,3]
[329453795,1718374298224,-1520.69,0.00024383,3]
[329453796,1718374298261,-500.0,0.00024383,3]
[329453797,1718374298320,-168.91,0.00024384,2]
[329453798,1718374298331,-239.36,0.00024384,2]
[329453799,1718374298384,-156.02,0.00024384,2]
[329453800,1718374298445,-300.51160797,0.00024388,2]
[329453801,1718374298492,-182.56,0.00024426,2]
[329453802,1718374298523,-150.41904512,0.00024446,2]
[329453803,1718374298551,-300.51160797,0.00024448,2]
[329453804,1718374298581,-300.51160797,0.00024482,2]
[329453805,1718374298601,-1276.77029431,0.000245,3]
[329453806,1718374298628,-166.632283,0.00024509,2]
[329453807,1718374298652,-167.6194557,0.00024537,2]
[329453808,1718374298663,-219.65,0.00024548,2]
[329453809,1718374298688,-158.4733106,0.00024557,2]
[329453810,1718374298730,-166.632283,0.0002456,2]
[329453811,1718374298768,-300.51160797,0.00024622,2]
[329453812,1718374298802,-816.883875,0.0002464,2]
[329453813,1718374298836,-13833.151912,0.0002464,2]
[329453814,1718374298882,-1136.8589002,0.0002464,2]
[329453815,1718374298919,-2081.31,0.00024656,3]
[329453816,1718374298948,-2081.31,0.00024656,3]
[329453817,1718374298982,-150.0,0.00024656,2]
[329453818,1718374299010,-500.0,0.00024657,3]
[329453819,1718374299085,-500.0,0.00024657,3]
[329453820,1718374299152,-500.0,0.00024657,3]
[329453821,1718374299180,-500.0,0.00024657,3]
[329453822,1718374299247,-500.0,0.00024657,3]
[329453823,1718374299265,-517.69980706,0.00024657,3]
[329453824,1718374299318,-500.0,0.00024657,3]
[329453825,1718374299368,-500.0,0.00024657,3]
[329453826,1718374299512,-537.95,0.00024657,3]
[329453827,1718374299569,-500.0,0.00024657,3]
[329453828,1718374299586,-500.0,0.00024657,3]
[329453829,1718374299617,-500.0,0.00024657,3]
[329453830,1718374299650,-442.12307801,0.00024657,3]
[329453831,1718374299745,-500.0,0.00024657,3]
[329453832,1718374299795,-500.0,0.00024657,3]
[329453833,1718374299843,-500.0,0.00024657,3]
[329453834,1718374299938,-511.32495682,0.00024657,3]
[329453835,1718374300004,-500.0,0.00024657,3]
[329453836,1718374300030,-500.0,0.00024657,3]
[329453837,1718374300042,-209.6207124,0.00024657,3]
[329453838,1718374300076,-500.0,0.00024657,3]
[329453839,1718374300106,-500.0,0.00024657,3]
[329453840,1718374300144,-500.0,0.00024657,3]
[329453841,1718374300168,-515.85086631,0.00024657,3]
[329453842,1718374300214,-500.0,0.00024657,3]
[329453843,1718374300232,-236.39426106,0.00024657,3]
[329453844,1718374300269,-500.0,0.00024657,3]
[329453845,1718374300291,-500.0,0.00024657,3]
[329453846,1718374300302,-500.0,0.00024657,3]
[329453847,1718374300333,-500.0,0.00024657,3]
[329453848,1718374300361,-500.0,0.00024657,3]
[329453849,1718374300456,-544.16115352,0.00024657,3]
[329453850,1718374300492,-500.0,0.00024657,3]
[329453851,1718374300548,-519.75744261,0.00024657,3]
[329453852,1718374300574,-500.0,0.00024657,3]
[329453853,1718374300610,-500.0,0.00024657,3]
[329453854,1718374300639,-578.52,0.00024657,3]
[329453855,1718374300808,-572.58866143,0.00024657,3]
[329453856,1718374300827,-523.33263253,0.00024657,3]
[329453857,1718374300845,-500.0,0.00024657,3]
[329453858,1718374300886,-500.0,0.00024657,3]
[329453859,1718374300953,-743.4,0.00024657,3]
[329453860,1718374301020,-500.0,0.00024657,3]
[329453861,1718374301052,-500.0,0.00024657,3]
[329453862,1718374301065,-500.0,0.00024657,3]
[329453863,1718374301092,-500.0,0.00024657,3]
[329453864,1718374301104,-500.0,0.00024657,3]
[329453865,1718374301118,-500.0,0.00024657,3]
[329453866,1718374301151,-500.0,0.00024657,3]
[329453867,1718374301193,-494.34148473,0.00024657,3]
[329453868,1718374301204,-500.0,0.00024657,3]
[329453869,1718374301218,-500.0,0.00024657,3]
[329453870,1718374301319,-500.0,0.00024657,3]
[329453871,1718374301351,-500.0,0.00024657,3]
[329453872,1718374301387,-500.0,0.00024657,3]
[329453873,1718374301400,-500.0,0.00024657,3]
[329453874,1718374301420,-500.0,0.00024657,3]
[329453875,1718374301453,-500.0,0.00024657,3]
[329453876,1718374301525,-500.0,0.00024657,3]
[329453877,1718374301552,-156.61273589,0.00024657,3]
[329453878,1718374301594,-250.0,0.00024657,3]
[329453879,1718374301608,-500.0,0.00024657,3]
[329453880,1718374301647,-500.0,0.00024657,3]
[329453881,1718374301658,-500.0,0.00024657,3]
[329453882,1718374301674,-500.0,0.00024657,3]
[329453883,1718374301685,-500.0,0.00024657,3]
[329453884,1718374301717,-500.0,0.00024657,3]
[329453885,1718374301776,-968.92,0.00024657,3]
[329453886,1718374301794,-515.7204979,0.00024657,3]
[329453887,1718374301810,-500.0,0.00024657,3]
[329453888,1718374301835,-500.0,0.00024657,3]
[329453889,1718374301849,-825.06,0.00024657,3]
[329453890,1718374301864,-500.0,0.00024657,3]
[329453891,1718374301876,-500.0,0.00024657,3]
[329453892,1718374301894,-701.8,0.00024657,3]
[329453893,1718374301953,-1085.99509998,0.00024657,3]
[329453894,1718374301991,-500.0,0.00024657,3]
[329453895,1718374302037,-500.0,0.00024657,3]
[329453896,1718374302081,-500.0,0.00024657,3]
[329453897,1718374302112,-500.0,0.00024657,3]
[329453898,1718374302157,-522.38,0.00024657,3]
[329453899,1718374302178,-500.0,0.00024657,3]
[329453900,1718374302195,-500.0,0.00024657,3]
[329453901,1718374302206,-521.06423441,0.00024657,3]
[329453902,1718374302217,-517.58219222,0.00024657,3]
[329453903,1718374302236,-500.0,0.00024657,3]
[329453904,1718374302284,-500.0,0.00024657,3]
[329453905,1718374302321,-500.0,0.00024657,3]
[329453906,1718374302347,-543.74,0.00024657,3]
[329453907,1718374302376,-500.0,0.00024657,3]
[329453908,1718374302418,-500.0,0.00024657,3]
[329453909,1718374302433,-500.0,0.00024657,3]
[329453910,1718374302444,-415.9159604,0.00024657,3]
[329453911,1718374302470,-500.0,0.00024657,3]
[329453912,1718374302489,-500.0,0.00024657,3]
[329453913,1718374302513,-500.0,0.00024657,3]
[329453914,1718374302540,-500.0,0.00024657,3]
[329453915,1718374302551,-500.0,0.00024657,3]
[329453916,1718374302569,-500.0,0.00024657,3]
[329453917,1718374302579,-567.6,0.00024657,3]
[329453918,1718374302590,-500.0,0.00024657,3]
[329453919,1718374302605,-500.0,0.00024657,3]
[329453920,1718374302647,-500.0,0.00024657,3]
[329453921,1718374302721,-668.49,0.00024657,3]
[329453922,1718374302737,-500.0,0.00024657,3]
[329453923,1718374302769,-500.0,0.00024657,3]
[329453924,1718374302789,-500.0,0.00024657,3]
[329453925,1718374302816,-500.0,0.00024657,3]
[329453926,1718374302857,-500.0,0.00024657,3]
[329453927,1718374302914,-500.0,0.00024657,3]
[329453928,1718374302925,-500.0,0.00024657,3]
[329453929,1718374302967,-500.0,0.00024657,3]
[329453930,1718374302984,-500.0,0.00024657,3]
[329453931,1718374303010,-500.0,0.00024657,3]
[329453932,1718374303021,-500.0,0.00024657,3]
[329453933,1718374303032,-541.48,0.00024657,3]
[329453934,1718374303065,-500.0,0.00024657,3]
[329453935,1718374303076,-500.0,0.00024657,3]
[329453936,1718374303106,-500.0,0.00024657,3]
[329453937,1718374303141,-639.52,0.00024657,3]
[329453938,1718374303160,-500.0,0.00024657,3]
[329453939,1718374303172,-500.0,0.00024657,3]
[329453940,1718374303184,-500.0,0.00024657,3]
[329453941,1718374303201,-500.0,0.00024657,3]
[329453942,1718374303240,-500.0,0.00024657,3]
[329453943,1718374303264,-500.0,0.00024657,3]
[329453944,1718374303318,-365.85754693,0.00024657,3]
[329453945,1718374303360,-500.0,0.00024657,3]
[329453946,1718374303389,-500.0,0.00024657,3]
[329453947,1718374303408,-500.0,0.00024657,3]
[329453948,1718374303486,-500.0,0.00024657,3]
[329453949,1718374303500,-500.0,0.00024657,3]
[329453950,1718374303516,-500.0,0.00024657,3]
[329453951,1718374303540,-500.0,0.00024657,3]
[329453952,1718374303561,-500.0,0.00024657,3]
[329453953,1718374303571,-791.99,0.00024657,3]
[329453954,1718374303591,-370.84068808,0.00024657,3]
[329453955,1718374303610,-500.0,0.00024657,3]
[329453956,1718374303648,-356.28231227,0.00024657,3]
[329453957,1718374303681,-500.0,0.00024657,3]
[329453958,1718374303721,-500.0,0.00024657,3]
[329453959,1718374303752,-500.0,0.00024657,3]
[329453960,1718374303771,-500.0,0.00024657,3]
[329453961,1718374303801,-500.0,0.00024657,3]
[329453962,1718374303825,-565.62,0.00024657,3]
[329453963,1718374303868,-500.0,0.00024657,3]
[329453964,1718374303884,-500.0,0.00024657,3]
[329453965,1718374303895,-500.0,0.00024657,3]
[329453966,1718374303905,-717.7,0.00024657,3]
[329453967,1718374303916,-500.0,0.00024657,3]
[329453968,1718374303936,-500.0,0.00024657,3]
[329453969,1718374303957,-500.0,0.00024657,3]
[329453970,1718374303977,-500.0,0.00024657,3]
[329453971,1718374303996,-530.92249254,0.00024657,3]
[329453972,1718374304006,-500.0,0.00024657,3]
[329453973,1718374304018,-500.0,0.00024657,3]
[329453974,1718374304036,-652.11,0.00024657,3]
[329453975,1718374304051,-500.0,0.00024657,3]
[329453976,1718374304064,-500.0,0.00024657,3]
[329453977,1718374304077,-500.0,0.00024657,3]
[329453978,1718374304089,-500.0,0.00024657,3]
[329453979,1718374304110,-519.71611072,0.00024657,3]
[329453980,1718374304124,-500.0,0.00024657,3]
[329453981,1718374304143,-500.0,0.00024657,3]
[329453982,1718374304166,-500.0,0.00024657,3]
[329453983,1718374304180,-1076.23,0.00024657,3]
[329453984,1718374304196,-500.0,0.00024657,3]
[329453985,1718374304240,-344.10335399,0.00024657,3]
[329453986,1718374304251,-500.0,0.00024657,3]
[329453987,1718374304268,-500.0,0.00024657,3]
[329453988,1718374304281,-500.0,0.00024657,3]
[329453989,1718374304306,-500.0,0.00024657,3]
[329453990,1718374304389,-500.0,0.00024657,3]
[329453991,1718374304445,-500.0,0.00024657,3]
[329453992,1718374304489,-500.0,0.00024657,3]
[329453993,1718374304548,-471.24138588,0.00024657,3]
[329453994,1718374304605,-888.68,0.00024657,3]
[329453995,1718374304633,-500.0,0.00024657,3]
[329453996,1718374304644,-500.0,0.00024657,3]
[329453997,1718374304654,-500.0,0.00024657,3]
[329453998,1718374304690,-500.0,0.00024657,3]
[329453999,1718374304711,-500.0,0.00024657,3]
[329454000,1718374304731,-500.0,0.00024657,3]
[329454001,1718374304811,-500.0,0.00024657,3]
[329454002,1718374304874,-500.0,0.00024657,3]
[329454003,1718374304908,-500.0,0.00024657,3]
[329454004,1718374304948,-500.0,0.00024657,3]
[329454005,1718374304969,-500.0,0.00024657,3]
[329454006,1718374305000,-500.0,0.00024657,3]
[329454007,1718374305017,-500.0,0.00024657,3]
[329454008,1718374305038,-693.55,0.00024657,3]
[329454009,1718374305051,-500.0,0.00024657,3]
[329454010,1718374305069,-917.0,0.00024657,3]
[329454011,1718374305083,-500.0,0.00024657,3]
[329454012,1718374305097,-500.0,0.00024657,3]
[329454013,1718374305115,-599.95,0.00024657,3]
[329454014,1718374305130,-500.0,0.00024657,3]
[329454015,1718374305148,-500.0,0.00024657,3]
[329454016,1718374305162,-500.0,0.00024657,3]
[329454017,1718374305183,-500.0,0.00024657,3]
[329454018,1718374305203,-500.0,0.00024657,3]
[329454019,1718374305219,-500.0,0.00024657,3]
[329454020,1718374305233,-500.0,0.00024657,3]
[329454021,1718374305252,-500.0,0.00024657,3]
[329454022,1718374305284,-500.0,0.00024657,3]
[329454023,1718374305296,-500.0,0.00024657,2]
[329454024,1718374305313,-839.71,0.00024657,3]
[329454025,1718374305326,-500.0,0.00024657,3]
[329454026,1718374305348,-500.0,0.00024657,3]
[329454027,1718374305361,-500.0,0.00024657,3]
[329454028,1718374305373,-641.52,0.00024657,3]
[329454029,1718374305386,-500.0,0.00024657,3]
[329454030,1718374305401,-675.06,0.00024657,3]
[329454031,1718374305414,-546.34,0.00024657,3]
[329454032,1718374305425,-790.03,0.00024657,3]
[329454033,1718374305437,-500.0,0.00024657,3]
[329454034,1718374305449,-500.0,0.00024657,3]
[329454035,1718374305462,-1529.68,0.00024657,3]
[329454036,1718374305474,-500.0,0.00024657,3]
[329454037,1718374305484,-500.0,0.00024657,3]
[329454038,1718374305512,-802.47,0.00024657,3]
[329454039,1718374305523,-500.0,0.00024657,3]
[329454040,1718374305537,-500.0,0.00024657,3]
[329454041,1718374305547,-500.0,0.00024657,3]
[329454042,1718374305567,-543.46,0.00024657,3]
[329454043,1718374305606,-1207.99,0.00024657,3]
[329454044,1718374305625,-500.0,0.00024657,3]
[329454045,1718374305637,-500.0,0.00024657,3]
[329454046,1718374305650,-500.0,0.00024657,3]
[329454047,1718374305663,-500.0,0.00024657,3]
[329454048,1718374305682,-743.91,0.00024657,3]
[329454049,1718374305697,-961.27,0.00024657,3]
[329454050,1718374305744,-500.0,0.00024657,3]
[329454051,1718374305759,-500.0,0.00024657,3]
[329454052,1718374305770,-500.0,0.00024657,3]
[329454053,1718374305785,-500.0,0.00024657,3]
[329454054,1718374305798,-500.0,0.00024657,3]
[329454055,1718374305810,-500.0,0.00024657,3]
[329454056,1718374305856,-624.95,0.00024657,3]
[329454057,1718374305917,-500.0,0.00024657,3]
[329454058,1718374305934,-500.0,0.00024657,3]
[329454059,1718374305951,-500.0,0.00024657,3]
[329454060,1718374305962,-500.0,0.00024657,3]
[329454061,1718374305987,-500.0,0.00024657,3]
[329454062,1718374306009,-500.0,0.00024657,3]
[329454063,1718374306020,-500.0,0.00024657,3]
[329454064,1718374306032,-557.80120133,0.00024657,3]
[329454065,1718374306047,-722.9,0.00024657,3]
[329454066,1718374306066,-500.0,0.00024657,3]
[329454067,1718374306080,-613.44,0.00024657,3]
[329454068,1718374306091,-500.0,0.00024657,3]
[329454069,1718374306103,-500.0,0.00024657,3]
[329454070,1718374306122,-773.81,0.00024657,3]
[329454071,1718374306136,-500.0,0.00024657,3]
[329454072,1718374306147,-620.90867697,0.00024657,3]
[329454073,1718374306158,-500.0,0.00024657,3]
[329454074,1718374306169,-500.0,0.00024657,3]
[329454075,1718374306182,-500.0,0.00024657,3]
[329454076,1718374306208,-500.0,0.00024657,3]
[329454077,1718374306235,-615.87686306,0.00024657,3]
[329454078,1718374306279,-500.24826678,0.00024657,3]
[329454079,1718374306297,-500.0,0.00024657,3]
[329454080,1718374306327,-500.0,0.00024657,3]
[329454081,1718374306339,-500.0,0.00024657,3]
[329454082,1718374306375,-500.0,0.00024657,3]
[329454083,1718374306387,-500.0,0.00024657,3]
[329454084,1718374306400,-521.15980072,0.00024657,3]
[329454085,1718374306425,-500.0,0.00024657,3]
[329454086,1718374306438,-150.0,0.00024657,3]
[329454087,1718374306452,-500.0,0.00024657,3]
[329454088,1718374306478,-500.0,0.00024657,3]
[329454089,1718374306507,-500.0,0.00024657,3]
[329454090,1718374306564,-226.6,0.00024657,3]
[329454091,1718374306700,-638.15,0.00024657,3]
[329454092,1718374306722,-151.0,0.00024657,7]
[329454093,1718374306743,-151.0,0.00024657,7]
[329454094,1718374306759,-500.0,0.00024657,3]
[329454095,1718374306774,-1315.53,0.00024657,3]
[329454096,1718374306789,-151.0,0.00024657,7]
[329454097,1718374306801,-151.0,0.00024657,7]
[329454098,1718374306812,-500.0,0.00024657,3]
[329454099,1718374306832,-500.0,0.00024657,3]
[329454100,1718374306865,-500.0,0.00024657,3]
[329454101,1718374306878,-500.0,0.00024657,3]
[329454102,1718374306893,-500.0,0.00024657,3]
[329454103,1718374306909,-500.0,0.00024657,3]
[329454104,1718374306920,-805.14,0.00024657,3]
[329454105,1718374306933,-500.0,0.00024657,3]
[329454106,1718374306944,-500.0,0.00024657,3]
[329454107,1718374306978,-500.0,0.00024657,3]
[329454108,1718374306995,-500.0,0.00024657,3]
[329454109,1718374307007,-500.0,0.00024657,3]
[329454110,1718374307021,-500.0,0.00024657,3]
[329454111,1718374307032,-897.25,0.00024657,3]
[329454112,1718374307045,-333.55483266,0.00024657,3]
[329454113,1718374307059,-500.0,0.00024657,3]
[329454114,1718374307070,-500.0,0.00024657,3]
[329454115,1718374307082,-532.49268694,0.00024657,3]
[329454116,1718374307094,-500.0,0.00024657,3]
[329454117,1718374307106,-500.0,0.00024657,3]
[329454118,1718374307118,-565.92329098,0.00024657,3]
[329454119,1718374307129,-500.0,0.00024657,3]
[329454120,1718374307147,-500.0,0.00024657,3]
[329454121,1718374307160,-500.0,0.00024657,3]
[329454122,1718374307170,-500.0,0.00024657,3]
[329454123,1718374307184,-500.0,0.00024657,3]
[329454124,1718374307197,-500.0,0.00024657,3]
[329454125,1718374307208,-500.0,0.00024657,3]
[329454126,1718374307219,-500.0,0.00024657,3]
[329454127,1718374307233,-500.0,0.00024657,3]
[329454128,1718374307244,-151.0,0.00024657,7]
[329454129,1718374307256,-151.0,0.00024657,7]
[329454130,1718374307276,-500.0,0.00024657,3]
[329454131,1718374307287,-659.84,0.00024657,3]
[329454132,1718374307298,-835.81,0.00024657,3]
[329454133,1718374307313,-500.0,0.00024657,3]
[329454134,1718374307335,-500.0,0.00024657,3]
[329454135,1718374307346,-500.0,0.00024657,3]
[329454136,1718374307363,-500.0,0.00024657,3]
[329454137,1718374307375,-500.0,0.00024657,3]
[329454138,1718374307391,-675.24,0.00024657,3]
[329454139,1718374307447,-1706.64,0.00024657,3]
[329454140,1718374307467,-500.0,0.00024657,3]
[329454141,1718374307483,-500.0,0.00024657,3]
[329454142,1718374307509,-500.0,0.00024657,3]
[329454143,1718374307521,-500.0,0.00024657,3]
[329454144,1718374307557,-500.0,0.00024657,3]
[329454145,1718374307568,-612.78,0.00024657,3]
[329454146,1718374307584,-500.0,0.00024657,3]
[329454147,1718374307600,-527.45,0.00024657,3]
[329454148,1718374307614,-561.87,0.00024657,3]
[329454149,1718374307630,-500.0,0.00024657,3]
[329454150,1718374307641,-500.0,0.00024657,3]
[329454151,1718374307652,-500.0,0.00024657,3]
[329454152,1718374307679,-500.0,0.00024657,3]
[329454153,1718374307694,-500.0,0.00024657,3]
[329454154,1718374307705,-500.0,0.00024657,3]
[329454155,1718374307736,-500.0,0.00024657,3]
[329454156,1718374307747,-500.0,0.00024657,3]
[329454157,1718374307758,-500.0,0.00024657,3]
[329454158,1718374307773,-500.0,0.00024657,3]
[329454159,1718374307787,-500.0,0.00024657,3]
[329454160,1718374307799,-500.0,0.00024657,3]
[329454161,1718374307816,-500.0,0.00024657,3]
[329454162,1718374307837,-151.0,0.00024657,7]
[329454163,1718374307866,-500.0,0.00024657,3]
[329454164,1718374307882,-775.58,0.00024657,3]
[329454165,1718374307893,-151.0,0.00024657,7]
[329454166,1718374307904,-533.86034985,0.00024657,3]
[329454167,1718374307915,-653.6,0.00024657,3]
[329454168,1718374307927,-576.03,0.00024657,3]